[Event "ROU-chT Men Superliga 2018"]
[Site "Sovata"]
[Date "2018.11.29"]
[Round "6"]
[White "Dobre, Mihai"]
[Black "Danilov, Vladimir"]
[Result "0-1"]
[ECO "C50"]
[WhiteElo "2104"]
[BlackElo "2386"]
[Annotator "RC"]
[PlyCount "140"]
[EventDate "2018.11.24"]
[EventType "team-tourn"]
[EventCountry "ROU"]
[SourceTitle "playchess.com"]
[Source "ChessBase"]
[SourceQuality "1"]
[TimeControl "40/5400+30:1800+30"]

1. e4 {[%emt 0:00:00]} e5 {[%emt 0:00:00]} 2. Nf3 {[%emt 0:00:00]} Nc6 {[%emt 0:00:00]} 3. Bc4 {[%emt 0:00:00]} Nf6 {[%emt 0:00:00]} 4. d3 {[%emt 0:00:07]} Bc5 {[%emt 0:00:19]} 5. c3 {[%emt 0:00:18]} a6 {[%emt 0:00:26]} 6. Bb3 {[%emt 0:00:18]} Ba7 {[%emt 0:00:21]} 7. h3 {[%emt 0:00:14]} O-O {[%emt 0:04:24]} 8. Nbd2 {[%emt 0:01:09]} d6 {[%emt 0:09:56]} 9. Nf1 {[%emt 0:05:32]} Be6 {[%emt 0:09:30]} 10. Ng3 {[%emt 0:02:20]} d5 {[%emt 0:00:06]} 11. Qe2 {[%emt 0:01:29]} dxe4 {[%emt 0:01:02]} 12. dxe4 {[%emt 0:00:02]} Bxb3 {[%emt 0:00:37]} 13. axb3 {[%emt 0:00:01]} Nd7 {[%emt 0:04:28]} 14. b4 {[%emt 0:06:26]} f6 {[%emt 0:03:20]} 15. Nh4 {[%emt 0:05:46]} Rf7 {[%emt 0:04:02]} 16. Nhf5 {[%emt 0:09:19]} Ne7 {[%emt 0:04:20]} 17. O-O {[%emt 0:03:37]} Nxf5 {[%emt 0:01:11]} 18. Nxf5 {[%emt 0:00:10]} Nf8 {[%emt 0:00:27]} 19. Rd1 {[%emt 0:16:47]} Qe8 {[%emt 0:08:00]} 20. Ra5 {[%emt 0:07:41]} Rd8 {[%emt 0:02:31]} 21. Rad5 {[%emt 0:01:42]} Rfd7 {[%emt 0:02:46]} 22. Qc4 {[%emt 0:18:10]} Ne6 {[%emt 0:05:58]} 23. g3 {[%emt 0:06:01]} c6 {[%emt 0:04:01]} 24. Rd6 {[%emt 0:01:28]} Bb8 {[%emt 0:06:58]} 25. Rxd7 Rxd7 {[%emt 0:00:18]} 26. Rxd7 {[%emt 0:02:46]} Qxd7 {[%emt 0:00:07]} 27. Be3 {[%emt 0:00:18]} g6 {[%emt 0:10:00]} 28. Nh6+ {[%emt 0:00:17]} Kg7 {[%emt 0:00:06]} 29. Kg2 {[%emt 0:03:21]} Ba7 {[%emt 0:02:28]} 30. Bxa7 {[%emt 0:01:53]} Kxh6 {[%emt 0:01:05]} 31. Be3+ {[%emt 0:00:19]} Kg7 {[%emt 0:00:20]} 32. Qe2 {[%emt 0:01:00]} Nd8 {[%emt 0:02:35]} 33. f4 {[%emt 0:02:16]} Nf7 {[%emt 0:02:19]} 34. Bc5 {[%emt 0:01:49]} h5 {[%emt 0:03:37]} 35. Be3 {[%emt 0:01:05]} exf4 {[%emt 0:03:17]} 36. gxf4 {[%emt 0:00:20]} Qe6 {[%emt 0:02:22]} 37. Bd4 {[%emt 0:00:47]} Nd6 {[%emt 0:01:19]} 38. e5 {[%emt 0:00:30]} Kf7 {[%emt 0:00:23]} 39. Qf2 {[%emt 0:02:20]} Nf5 {[%emt 0:02:49]} 40. Kh2 {[%emt 0:00:00]} Qd5 {[%emt 0:00:00]} 41. Qg2 {[%emt 0:06:42]} Qxg2+ {[%emt 0:05:21]} 42. Kxg2 {[%emt 0:00:01]} fxe5 {[%emt 0:00:09]} 43. Bxe5 {[%emt 0:03:12]} Ne3+ {[%emt 0:01:32]} 44. Kf3 {[%emt 0:00:08]} Nc4 {[%emt 0:00:24]} 45. Ke4 {[%emt 0:01:14]} Ke6 {[%emt 0:00:17]} 46. Bc7 {[%emt 0:00:49]} Nxb2 {[%emt 0:01:22]} 47. Kd4 {[%emt 0:00:23]} Nd1 {[%emt 0:00:47]} 48. Bd8 {[%emt 0:05:48]} Nf2 {[%emt 0:05:14]} 49. h4 {[%emt 0:00:07]} Ng4 {[%emt 0:01:31]} 50. Kc5 {[%emt 0:00:33]} Kd7 {[%emt 0:01:04]} 51. Bg5 {[%emt 0:00:34]} Kc7 {[%emt 0:01:49]} 52. Kd4 {[%emt 0:02:05]} Kd6 {[%emt 0:00:27]} 53. Ke4 {[%emt 0:00:18]} Ke6 {[%emt 0:00:25]} 54. Bd8 {[%emt 0:00:12]} Nf6+ {[%emt 0:01:38]} 55. Kd4 {[%emt 0:01:40]} Nd5 {[%emt 0:01:01]} 56. c4 {[%emt 0:01:59]} Nxb4 {[%emt 0:00:44]} 57. Kc5 {[%emt 0:02:01]} Nd3+ {[%emt 0:03:04]} 58. Kb6 {[%emt 0:00:07]} Kd7 {[%emt 0:00:08]} 59. Bf6 {[%emt 0:00:40]} Kc8 {[%emt 0:01:15]} 60. Be5 {[%emt 0:00:57]} Ne1 {[%emt 0:08:48]} 61. Kc5 {[%emt 0:00:26]} Kd7 {[%emt 0:00:24]} 62. Kb6 {[%emt 0:00:01]} Ng2 {[%emt 0:00:11]} 63. Bf6 {[%emt 0:00:35]} Kc8 {[%emt 0:00:19]} 64. Kc5 {[%emt 0:00:19]} a5 {[%emt 0:01:00]} 65. Kd6 {[%emt 0:00:18]} Nxf4 {[%emt 0:00:43]} 66. c5 {[%emt 0:00:08]} a4 {[%emt 0:00:13]} 67. Be5 {[%emt 0:01:23]} Ng2 {[%emt 0:00:09]} 68. Bf6 {[%emt 0:00:43]} a3 {[%emt 0:00:07]} 69. Ke6 {[%emt 0:00:10]} a2 {[%emt 0:00:14]} 70. Kf7 {[%emt 0:00:49]} Nxh4 {[%emt 0:00:06]} 0-1

[Event "ROU-chT Men Superliga 2018"]
[Site "Sovata"]
[Date "2018.11.29"]
[Round "6"]
[White "Casangiu, Paul-Horatiu"]
[Black "Dicu, Razvan-Stefan"]
[Result "0-1"]
[ECO "A11"]
[WhiteElo "2027"]
[BlackElo "2274"]
[Annotator "NA RC"]
[PlyCount "94"]
[EventDate "2018.11.24"]
[EventType "team-tourn"]
[EventCountry "ROU"]
[SourceTitle "playchess.com"]
[Source "ChessBase"]
[SourceQuality "1"]
[TimeControl "40/5400+30:1800+30"]

{[%evp 14,88,68,44,53,29,33,32767,-6,-37,10,-9,-5,32767,32767,-29,-34,-31,32767,32767,-67,32767,32767,-89,32767,-39,0,32767,0,32767,32767,32767,32767,32767,32767,32767,-64,32767,32767,32767,-447,-454,32767,32767,32767,-522,-500,-436,32767,32767,32767,32767,-186,-207,-220,-220,32767,-228,32767,-339,32767,-379,-381,-424,32767,32767,32767,32767,32767,-386,-465,-482,32767,-525,-243,-527,-595]} 1. c4 {[%emt 0:00:20]} c6 {[%emt 0:00:00]} 2. d4 {[%emt 0:01:13]} d5 {[%emt 0:00:19]} 3. e3 {[%emt 0:02:41]} Nf6 {[%emt 0:01:11]} 4. Nc3 {[%emt 0:01:17]} a6 {[%emt 0:01:35]} 5. Bd3 {[%emt 0:02:07]} b5 {[%emt 0:02:28]} 6. b3 {[%emt 0:04:20]} Bg4 {[%emt 0:04:56] D10: Slav Defence: 3 cxd5 (without early Nf3) and 3 Nc3} 7. f3 {[%emt 0:01:27]} Bh5 {[%emt 0:00:47]} 8. Nge2 {[%emt 0:01:04]} Bg6 {[%emt 0:02:19]} 9. O-O {[%emt 0:01:06]} e6 {[%emt 0:00:35] LiveBook: 8 Games} 10. a4 $146 {[%emt 0:02:51]} ({Predecessor:} 10. c5 Nbd7 11. Nf4 e5 12. Nxg6 hxg6 13. Qe1 Be7 14. f4 e4 15. Be2 {1-0 (35) Nikolaidis,I (2548)-Velicka,P (2425) Aghios Kirykos 2018}) 10... b4 {[%emt 0:01:05]} 11. Nb1 {[%emt 0:01:39]} Nbd7 {[%emt 0:01:22]} 12. Bb2 {[%emt 0:05:22]} Bd6 {[%emt 0:04:46]} 13. cxd5 {[%emt 0:16:55]} cxd5 {[%emt 0:03:31]} 14. Nf4 {[%emt 0:09:48]} Qc7 {[%emt 0:03:54]} 15. g3 {[%emt 0:00:48]} Bxd3 {[%emt 0:17:24]} 16. Qxd3 {[%emt 0:00:33]} h5 {[%emt 0:00:28]} 17. Rc1 {[%emt 0:07:52]} Qb8 {[%emt 0:00:14]} 18. h4 {[%emt 0:01:02]} Ke7 {[%emt 0:05:11]} 19. Kf2 {[%emt 0:09:42]} Qg8 {[%emt 0:05:32]} 20. Nh3 $1 {[%emt 0:03:18]} Qb8 {[%emt 0:08:26]} 21. Nf4 {[%emt 0:03:56]} Rg8 {[%emt 0:03:11]} 22. Nd2 {[%emt 0:04:46]} g5 {[%emt 0:00:20]} 23. hxg5 {[%emt 0:00:24]} Rxg5 {[%emt 0:00:11]} 24. Rg1 {[%emt 0:01:35]} h4 $1 {[%emt 0:01:58]} 25. gxh4 {[%emt 0:06:23]} Rxg1 {[%emt 0:00:18]} 26. Nxd5+ {[%emt 0:00:10]} Nxd5 {[%emt 0:01:04]} ({Resist} 26... exd5 27. Rxg1 Qh8 28. Rh1 $19) 27. Rxg1 {[%emt 0:00:02]} Qh8 {[%emt 0:00:30]} 28. Rh1 {[%emt 0:01:40]} Qg7 {[%emt 0:00:31]} 29. Ne4 {[%emt 0:00:38]} Rg8 {[%emt 0:01:01]} 30. Qf1 {[%emt 0:01:26]} Bg3+ {[%emt 0:08:35]} 31. Ke2 {[%emt 0:01:41]} Bb8 {[%emt 0:00:06]} 32. Kd3 {[%emt 0:01:53]} Qg2 $2 {[%emt 0:08:04]} (32... N7f6 33. Kd2 Qg6 34. Nxf6 Qxf6) 33. Qxg2 {[%emt 0:01:01]} Rxg2 {[%emt 0:00:07]} 34. Bc1 {[%emt 0:00:28]} f5 {[%emt 0:00:53]} 35. Ng5 {[%emt 0:00:44]} e5 {[%emt 0:06:14]} 36. Bd2 {[%emt 0:02:09]} exd4 {[%emt 0:00:44]} 37. exd4 {[%emt 0:00:40]} Bg3 {[%emt 0:01:41]} 38. a5 {[%emt 0:01:00]} N7f6 {[%emt 0:00:53]} 39. Be1 {[%emt 0:00:40]} Bc7 {[%emt 0:00:18]} 40. Bd2 {[%emt 0:00:00]} Kd7 {[%emt 0:00:00]} 41. Rd1 {[%emt 0:02:59]} Rh2 {[%emt 0:03:27]} 42. Kc4 {[%emt 0:00:22]} Bf4 {[%emt 0:02:08]} 43. Bxf4 {[%emt 0:04:43]} Rc2+ {[%emt 0:00:17]} 44. Kd3 {[%emt 0:00:11]} Rc3+ $19 {[%emt 0:00:07] Double Attack} 45. Kd2 {[%emt 0:00:14]} Nxf4 {[%emt 0:00:04]} 46. Nf7 {[%emt 0:01:09]} Ke6 {[%emt 0:01:21]} 47. Ne5 {[%emt 0:00:38] Kxe5} Kd5 {[%emt 0:01:17]} 0-1

[Event "ROU-chT Men Superliga 2018"]
[Site "Sovata"]
[Date "2018.11.30"]
[Round "7"]
[White "Ionescu, Doru-Alexandru"]
[Black "Szabo, Attila"]
[Result "1/2-1/2"]
[ECO "A36"]
[WhiteElo "2321"]
[BlackElo "2263"]
[Annotator "RC"]
[PlyCount "67"]
[EventDate "2018.11.24"]
[EventType "team-tourn"]
[EventCountry "ROU"]
[SourceTitle "playchess.com"]
[Source "ChessBase"]
[SourceQuality "1"]
[TimeControl "40/5400+30:1800+30"]

1. c4 {[%emt 0:00:00]} c5 {[%emt 0:00:00]} 2. g3 {[%emt 0:00:00]} g6 {[%emt 0:00:14]} 3. Bg2 {[%emt 0:00:00]} Bg7 {[%emt 0:00:06]} 4. Nc3 {[%emt 0:00:00]} Nc6 {[%emt 0:00:33]} 5. d3 {[%emt 0:00:11]} d6 {[%emt 0:02:17]} 6. e3 {[%emt 0:00:16]} e5 {[%emt 0:02:04]} 7. Nge2 {[%emt 0:00:07]} Nge7 {[%emt 0:00:08]} 8. O-O {[%emt 0:00:25]} O-O {[%emt 0:00:06]} 9. a3 {[%emt 0:01:46]} a5 {[%emt 0:02:19]} 10. Rb1 {[%emt 0:00:54]} Rb8 {[%emt 0:01:50]} 11. Bd2 {[%emt 0:03:20]} Bf5 {[%emt 0:04:50]} 12. Qc2 {[%emt 0:02:52]} b6 {[%emt 0:10:14]} 13. Nd5 {[%emt 0:22:25]} Nxd5 {[%emt 0:07:22]} 14. Bxd5 {[%emt 0:00:57]} Ne7 {[%emt 0:08:33]} 15. Bg2 {[%emt 0:04:09]} Qd7 {[%emt 0:03:14]} 16. b4 {[%emt 0:21:55]} axb4 {[%emt 0:03:07]} 17. axb4 {[%emt 0:00:05]} Rfc8 {[%emt 0:13:36]} 18. Nc3 {[%emt 0:08:15]} Be6 {[%emt 0:13:06]} 19. Qa4 {[%emt 0:05:43]} Qd8 {[%emt 0:00:57]} 20. Rfd1 {[%emt 0:05:58]} d5 {[%emt 0:06:50]} 21. cxd5 {[%emt 0:10:12]} Nxd5 {[%emt 0:00:35]} 22. bxc5 {[%emt 0:00:33]} Nxc3 {[%emt 0:01:19]} 23. Bxc3 {[%emt 0:00:05]} Rxc5 {[%emt 0:01:48]} 24. Bb4 {[%emt 0:01:19]} Rcc8 {[%emt 0:01:48]} 25. Qa3 {[%emt 0:04:19]} Bd5 {[%emt 0:01:29]} 26. Bh3 {[%emt 0:02:55]} Ra8 {[%emt 0:00:40]} 27. Rbc1 {[%emt 0:03:02]} Rxa3 {[%emt 0:02:10]} 28. Rxc8 {[%emt 0:00:02]} Qxc8 {[%emt 0:00:07]} 29. Bxc8 {[%emt 0:00:05]} Rb3 {[%emt 0:00:13]} 30. Be7 {[%emt 0:01:11]} Bf3 {[%emt 0:00:22]} 31. Rc1 {[%emt 0:00:13]} Rxd3 {[%emt 0:04:09]} 32. Ba6 {[%emt 0:00:09]} Rd1+ {[%emt 0:00:15]} 33. Rxd1 {[%emt 0:00:06]} Bxd1 {[%emt 0:00:04]} 34. Bd8 {[%emt 0:00:05]} 1/2-1/2

[Event "ROU-chT Men Superliga 2018"]
[Site "Sovata"]
[Date "2018.11.30"]
[Round "7"]
[White "Nastase, Robert-Paul"]
[Black "Itkis, Boris"]
[Result "1-0"]
[ECO "B18"]
[WhiteElo "2296"]
[BlackElo "2325"]
[Annotator "NA RC"]
[PlyCount "55"]
[EventDate "2018.11.24"]
[EventType "team-tourn"]
[EventCountry "ROU"]
[SourceTitle "playchess.com"]
[Source "ChessBase"]
[SourceQuality "1"]
[TimeControl "40/5400+30:1800+30"]

1. e4 {[%emt 0:00:00]} c6 {[%emt 0:00:00]} 2. d4 {[%emt 0:00:00]} d5 {[%emt 0:00:00]} 3. Nd2 {[%emt 0:00:00]} dxe4 {[%emt 0:00:09]} 4. Nxe4 {[%emt 0:00:00]} Bf5 {[%emt 0:00:22]} 5. Ng3 {[%emt 0:00:00]} Bg6 {[%emt 0:00:06]} 6. h4 {[%emt 0:00:00]} h6 {[%emt 0:00:07]} 7. Nf3 {[%emt 0:00:00]} e6 {[%emt 0:01:27]} 8. Ne5 {[%emt 0:01:00]} Bh7 {[%emt 0:01:51]} 9. Bd3 {[%emt 0:02:14]} Bxd3 {[%emt 0:00:40]} 10. Qxd3 {[%emt 0:00:05]} Nd7 {[%emt 0:00:03] B19: Classical Caro-Kann: 4...Bf5 main line} 11. f4 {[%emt 0:00:07]} Be7 {[%emt 0:01:29]} 12. Nh5 {[%emt 0:00:06]} Ndf6 $146 {[%emt 0:09:23]} ({Predecessor:} 12... Ngf6 13. Nxg7+ Kf8 14. Nxe6+ fxe6 15. Bd2 Rh7 16. Rh3 c5 17. O-O-O cxd4 18. Rg3 {½-½ (29) Balogh,C (2625)-Rodshtein,M (2674) Czech Republic 2018}) 13. Nxg7+ {[%emt 0:16:49]} Kf8 {[%emt 0:00:05]} 14. f5 {[%emt 0:05:02]} ({Don't take} 14. Nxe6+ $6 fxe6 15. f5 (15. Qg6 Rh7 $17) (15. Ng6+ Kg7 $14) 15... Rh7 $11) 14... Rh7 {[%emt 0:12:01]} 15. fxe6 {[%emt 0:19:43]} Rxg7 {[%emt 0:00:07]} 16. exf7 {[%emt 0:00:11]} Rxf7 {[%emt 0:00:18]} 17. Nxf7 {[%emt 0:00:25]} Kxf7 {[%emt 0:00:05]} 18. O-O {[%emt 0:05:03]} Qd7 {[%emt 0:11:51]} (18... Kg7 $142) 19. Bxh6 $2 {[%emt 0:08:39]} ({White should try} 19. Qh7+ $18 Ke8 20. Qd3) 19... Nxh6 {[%emt 0:22:57]} 20. Qh7+ {[%emt 0:00:06]} Ke8 {[%emt 0:00:02]} 21. Qxh6 {[%emt 0:00:05]} Qxd4+ {[%emt 0:01:06]} 22. Kh1 {[%emt 0:00:05]} Nd5 {[%emt 0:00:39]} 23. Rae1 {[%emt 0:03:16]} Kd8 {[%emt 0:06:07]} 24. Rf7 {[%emt 0:04:37]} Qb4 {[%emt 0:15:21]} 25. c3 {[%emt 0:01:26]} Qc5 {[%emt 0:09:14]} 26. Qh8+ $18 {[%emt 0:01:32]} Kc7 {[%emt 0:03:55]} 27. Qxa8 {[%emt 0:00:11]} Kb6 {[%emt 0:00:17]} 28. Rfxe7 {[%emt 0:00:09]} 1-0

[Event "ROU-chT Men Superliga 2018"]
[Site "Sovata"]
[Date "2018.11.30"]
[Round "7"]
[White "Ognean, Mihnea-Ionut"]
[Black "Casangiu, Paul-Horatiu"]
[Result "1-0"]
[ECO "A50"]
[WhiteElo "2291"]
[BlackElo "2027"]
[Annotator "RC"]
[PlyCount "73"]
[EventDate "2018.11.24"]
[EventType "team-tourn"]
[EventCountry "ROU"]
[SourceTitle "playchess.com"]
[Source "ChessBase"]
[SourceQuality "1"]
[TimeControl "40/5400+30:1800+30"]

1. d4 {[%emt 0:00:00]} Nf6 {[%emt 0:01:21]} 2. c4 {[%emt 0:00:22]} d5 {[%emt 0:01:12]} 3. cxd5 {[%emt 0:01:02]} Nxd5 {[%emt 0:00:34]} 4. e4 {[%emt 0:00:07]} Nb6 {[%emt 0:01:00]} 5. Be3 {[%emt 0:05:08]} e5 {[%emt 0:05:44]} 6. Nf3 {[%emt 0:13:24]} Bg4 {[%emt 0:01:46]} 7. Bb5+ {[%emt 0:00:40]} c6 {[%emt 0:00:33]} 8. Be2 {[%emt 0:00:05]} Bb4+ {[%emt 0:00:56]} 9. Nc3 {[%emt 0:03:06]} Bxf3 {[%emt 0:01:26]} 10. gxf3 {[%emt 0:02:08]} N8d7 {[%emt 0:02:24]} 11. Rg1 {[%emt 0:13:00]} g6 {[%emt 0:02:04]} 12. Qb3 {[%emt 0:00:42]} Qe7 {[%emt 0:02:55]} 13. O-O-O {[%emt 0:06:11]} O-O-O {[%emt 0:01:06]} 14. a3 {[%emt 0:07:25]} Bd6 {[%emt 0:03:06]} 15. d5 {[%emt 0:00:29]} c5 {[%emt 0:09:12]} 16. Kb1 {[%emt 0:01:27]} h6 {[%emt 0:03:15]} 17. Rc1 {[%emt 0:01:28]} Kb8 {[%emt 0:00:57]} 18. a4 {[%emt 0:01:42]} Ka8 {[%emt 0:05:12]} 19. a5 {[%emt 0:02:19]} Nc8 {[%emt 0:00:01]} 20. a6 {[%emt 0:01:31]} b6 {[%emt 0:02:04]} 21. Bb5 {[%emt 0:02:17]} Nb8 {[%emt 0:02:29]} 22. Qa4 {[%emt 0:02:41]} Qc7 {[%emt 0:00:49]} 23. Rgd1 {[%emt 0:02:40]} f5 {[%emt 0:00:29]} 24. Rc2 {[%emt 0:07:02]} f4 {[%emt 0:00:42]} 25. Bc1 {[%emt 0:00:03]} g5 {[%emt 0:05:09]} 26. b4 {[%emt 0:01:06]} Ne7 {[%emt 0:02:09]} 27. Ba3 {[%emt 0:01:24]} Rc8 {[%emt 0:01:14]} 28. Na2 {[%emt 0:00:57]} Rhd8 {[%emt 0:00:40]} 29. Rdc1 {[%emt 0:00:10]} Nd7 {[%emt 0:00:11]} 30. Rc4 {[%emt 0:01:01]} Rb8 {[%emt 0:06:11]} 31. R1c2 {[%emt 0:03:39]} h5 {[%emt 0:00:52]} 32. h3 {[%emt 0:00:12]} Rbc8 {[%emt 0:02:06]} 33. Nc1 {[%emt 0:00:10]} Rb8 {[%emt 0:10:33]} 34. Nd3 {[%emt 0:00:33]} Qc8 {[%emt 0:02:40]} 35. Ka2 {[%emt 0:00:21]} Nf6 {[%emt 0:00:58]} 36. bxc5 {[%emt 0:00:34]} bxc5 {[%emt 0:00:11]} 37. Bxc5 {[%emt 0:02:14]} 1-0

[Event "ROU-chT Men Superliga 2018"]
[Site "Sovata"]
[Date "2018.11.30"]
[Round "7"]
[White "Daianu, Cristian-Clement"]
[Black "Scripcaru, George-Daniel"]
[Result "1/2-1/2"]
[ECO "B12"]
[WhiteElo "2160"]
[BlackElo "2176"]
[Annotator "NA RC"]
[PlyCount "35"]
[EventDate "2018.11.24"]
[EventType "team-tourn"]
[EventCountry "ROU"]
[SourceTitle "playchess.com"]
[Source "ChessBase"]
[SourceQuality "1"]
[TimeControl "40/5400+30:1800+30"]

1. e4 {[%emt 0:00:00]} c6 {[%emt 0:00:00]} 2. d4 {[%emt 0:01:37]} d5 {[%emt 0:00:00]} 3. f3 {[%emt 0:00:45]} dxe4 {[%emt 0:02:12]} 4. fxe4 {[%emt 0:00:08]} e5 {[%emt 0:00:03]} 5. Nf3 {[%emt 0:00:11]} exd4 {[%emt 0:00:15]} 6. Bc4 {[%emt 0:00:22]} Qa5+ {[%emt 0:08:24]} 7. c3 {[%emt 0:11:19]} d3 {[%emt 0:18:44]} 8. Qxd3 {[%emt 0:16:23]} Nd7 {[%emt 0:02:26]} 9. O-O {[%emt 0:16:23]} Nc5 {[%emt 0:10:04]} 10. Qe2 {[%emt 0:13:51]} Ne6 {[%emt 0:00:59]} 11. Nd4 {[%emt 0:08:03]} Nf6 {[%emt 0:15:45]} 12. e5 {[%emt 0:19:31]} Nxd4 {[%emt 0:04:05]} 13. cxd4 {[%emt 0:00:09]} Nd5 {[%emt 0:00:06]} 14. Nc3 {[%emt 0:03:01]} Be6 {[%emt 0:00:12]} 15. Bg5 {[%emt 0:01:51]} h6 {[%emt 0:06:55]} 16. Bh4 $16 {[%emt 0:00:40]} Be7 {[%emt 0:04:42]} 17. Bxe7 {[%emt 0:00:19]} Kxe7 {[%emt 0:00:19]} 18. Ne4 {[%emt 0:00:47]} 1/2-1/2

[Event "ROU-chT Men Superliga 2018"]
[Site "Sovata"]
[Date "2018.11.30"]
[Round "7"]
[White "Andronescu, Madalin"]
[Black "Stoleriu, George"]
[Result "0-1"]
[ECO "C18"]
[WhiteElo "2070"]
[BlackElo "2362"]
[Annotator "ChessBase"]
[PlyCount "84"]
[EventDate "2018.11.24"]
[EventType "team-tourn"]
[EventCountry "ROU"]
[SourceTitle "playchess.com"]
[Source "ChessBase"]
[SourceQuality "1"]
[TimeControl "40/5400+30:1800+30"]

1. e4 {[%emt 0:00:00]} e6 {[%emt 0:00:00]} 2. d4 {[%emt 0:00:00]} d5 {[%emt 0:00:00]} 3. Nc3 {[%emt 0:00:00]} Bb4 {[%emt 0:00:00]} 4. e5 {[%emt 0:02:16]} c5 {[%emt 0:00:00]} 5. a3 {[%emt 0:00:04]} Bxc3+ {[%emt 0:00:00]} 6. bxc3 {[%emt 0:00:05]} Qc7 {[%emt 0:00:03]} 7. Qg4 {[%emt 0:00:37]} f6 {[%emt 0:00:07]} 8. exf6 {[%emt 0:04:54]} Nxf6 {[%emt 0:01:51]} 9. Qg3 {[%emt 0:00:06]} Qa5 {[%emt 0:02:09]} 10. Bd2 {[%emt 0:36:47]} O-O {[%emt 0:01:46]} 11. f3 {[%emt 0:00:07]} Nc6 {[%emt 0:04:40]} 12. Qd6 {[%emt 0:15:46]} cxd4 {[%emt 0:02:42]} 13. cxd4 {[%emt 0:00:10]} Qb6 {[%emt 0:00:07]} 14. c3 {[%emt 0:01:11]} e5 {[%emt 0:00:40]} 15. Bd3 {[%emt 0:04:41]} Rd8 {[%emt 0:21:08]} 16. Qc5 {[%emt 0:00:20]} Qxc5 {[%emt 0:00:29]} 17. dxc5 {[%emt 0:00:08]} Nd7 {[%emt 0:00:03]} 18. Be3 {[%emt 0:03:17]} d4 {[%emt 0:02:00]} 19. Bc4+ {[%emt 0:07:42]} Kh8 {[%emt 0:02:39]} 20. Bg5 {[%emt 0:02:55]} Re8 {[%emt 0:00:08]} 21. Bf7 {[%emt 0:00:05]} Rf8 {[%emt 0:00:04]} 22. Bd5 {[%emt 0:00:36]} Nxc5 {[%emt 0:00:42]} 23. Ne2 {[%emt 0:02:30]} Ne6 {[%emt 0:09:02]} 24. Bh4 {[%emt 0:03:28]} d3 {[%emt 0:07:03]} 25. Bxc6 {[%emt 0:00:06]} bxc6 {[%emt 0:00:45]} 26. Nc1 {[%emt 0:00:09]} Ba6 {[%emt 0:01:54]} 27. Ra2 {[%emt 0:04:32]} Rab8 {[%emt 0:01:28]} 28. Rd2 {[%emt 0:00:30]} Rb1 {[%emt 0:02:19]} 29. O-O {[%emt 0:00:28]} e4 {[%emt 0:02:06]} 30. Bf2 {[%emt 0:02:42]} exf3 {[%emt 0:00:53]} 31. Rfd1 {[%emt 0:05:18]} Nf4 {[%emt 0:14:17]} 32. Na2 {[%emt 0:00:17]} Rxd1+ {[%emt 0:00:29]} 33. Rxd1 {[%emt 0:00:04]} Bc4 {[%emt 0:06:06]} 34. Rd2 {[%emt 0:01:52]} Rb8 {[%emt 0:02:59]} 35. Bxa7 {[%emt 0:01:18]} Rb1+ {[%emt 0:03:13]} 36. Kf2 {[%emt 0:00:07]} fxg2 {[%emt 0:00:14]} 37. Kf3 {[%emt 0:00:12]} g5 {[%emt 0:02:46]} 38. Nb4 {[%emt 0:00:21]} g1=Q {[%emt 0:01:17]} 39. Bxg1 {[%emt 0:00:08]} Rxg1 {[%emt 0:00:02]} 40. h4 {[%emt 0:00:00]} h6 {[%emt 0:00:00]} 41. hxg5 {[%emt 0:03:38]} hxg5 {[%emt 0:00:35]} 42. Ke3 {[%emt 0:00:04]} c5 {[%emt 0:00:57] Kd4} 0-1

[Event "ROU-chT Men Superliga 2018"]
[Site "Sovata"]
[Date "2018.12.01"]
[Round "8"]
[White "Berescu, Alin-Mile"]
[Black "Ogleznev, Alexandr"]
[Result "1/2-1/2"]
[ECO "B19"]
[WhiteElo "2450"]
[BlackElo "2333"]
[Annotator "RC"]
[PlyCount "57"]
[EventDate "2018.11.24"]
[EventType "team-tourn"]
[EventCountry "ROU"]
[SourceTitle "playchess.com"]
[Source "ChessBase"]
[SourceQuality "1"]
[TimeControl "40/5400+30:1800+30"]

1. e4 {[%emt 0:00:00]} c6 {[%emt 0:00:00]} 2. d4 {[%emt 0:00:08]} d5 {[%emt 0:00:00]} 3. Nc3 {[%emt 0:00:33]} dxe4 {[%emt 0:00:00]} 4. Nxe4 {[%emt 0:00:08]} Bf5 {[%emt 0:00:08]} 5. Ng3 {[%emt 0:00:21]} Bg6 {[%emt 0:00:06]} 6. h4 {[%emt 0:00:07]} h6 {[%emt 0:00:34]} 7. Nf3 {[%emt 0:00:10]} Nd7 {[%emt 0:00:21]} 8. h5 {[%emt 0:00:23]} Bh7 {[%emt 0:00:07]} 9. Bd3 {[%emt 0:00:09]} Bxd3 {[%emt 0:00:20]} 10. Qxd3 {[%emt 0:00:08]} e6 {[%emt 0:00:18]} 11. Bd2 {[%emt 0:01:32]} Ngf6 {[%emt 0:00:46]} 12. O-O-O {[%emt 0:03:36]} Qc7 {[%emt 0:00:28]} 13. Ne4 {[%emt 0:01:01]} O-O-O {[%emt 0:00:14]} 14. g3 {[%emt 0:00:39]} Nxe4 {[%emt 0:00:16]} 15. Qxe4 {[%emt 0:00:04]} Nf6 {[%emt 0:00:29]} 16. Qe2 {[%emt 0:00:09]} Bd6 {[%emt 0:00:07]} 17. c4 {[%emt 0:05:00]} c5 {[%emt 0:00:19]} 18. Bc3 {[%emt 0:00:17]} cxd4 {[%emt 0:00:35]} 19. Nxd4 {[%emt 0:00:08]} a6 {[%emt 0:00:11]} 20. Kb1 {[%emt 0:04:38]} Rd7 {[%emt 0:01:11]} 21. Nb3 {[%emt 0:02:43]} Qc6 {[%emt 0:05:48]} 22. Rh4 {[%emt 0:01:29]} Rhd8 {[%emt 0:00:33]} 23. Rc1 {[%emt 0:01:16]} Kb8 {[%emt 0:07:08]} 24. a3 {[%emt 0:14:28]} Bc7 {[%emt 0:10:42]} 25. Ka2 {[%emt 0:12:18]} Ka8 {[%emt 0:08:25]} 26. Nd4 {[%emt 0:14:43]} Qc5 {[%emt 0:11:34]} 27. Nb3 {[%emt 0:02:16]} Qc6 {[%emt 0:00:43]} 28. Nd4 {[%emt 0:04:45]} Qc5 {[%emt 0:00:15]} 29. Nb3 {[%emt 0:00:05]} 1/2-1/2

[Event "ROU-chT Men Superliga 2018"]
[Site "Sovata"]
[Date "2018.12.01"]
[Round "8"]
[White "Cioara, Andrei-Nestor"]
[Black "Ionescu, Constantin"]
[Result "1/2-1/2"]
[ECO "B43"]
[WhiteElo "2427"]
[BlackElo "2432"]
[Annotator "NA RC"]
[PlyCount "27"]
[EventDate "2018.11.24"]
[EventType "team-tourn"]
[EventCountry "ROU"]
[SourceTitle "playchess.com"]
[Source "ChessBase"]
[SourceQuality "1"]
[TimeControl "40/5400+30:1800+30"]

1. e4 {[%emt 0:00:00]} c5 {[%emt 0:02:06]} 2. Nf3 {[%emt 0:00:00]} e6 {[%emt 0:00:12]} 3. d4 {[%emt 0:00:00]} cxd4 {[%emt 0:00:07]} 4. Nxd4 {[%emt 0:00:00]} a6 {[%emt 0:00:14]} 5. Nc3 {[%emt 0:00:00]} b5 {[%emt 0:02:14]} 6. Bd3 {[%emt 0:00:11]} Bb7 {[%emt 0:00:08]} 7. O-O {[%emt 0:00:18]} Qc7 {[%emt 0:02:04]} 8. Re1 {[%emt 0:13:32]} Nc6 {[%emt 0:04:25]} 9. Nf3 {[%emt 0:00:47]} d6 {[%emt 0:09:25]} 10. Bf4 {[%emt 0:12:46]} Nf6 {[%emt 0:11:13]} 11. a4 {[%emt 0:32:00]} b4 {[%emt 0:00:29]} 12. Nb1 {[%emt 0:00:04]} Be7 {[%emt 0:01:54]} 13. Nbd2 {[%emt 0:00:44]} Ne5 {[%emt 0:02:33]} 14. a5 1/2-1/2